{"text_format":"1","workbook":"xlsx","n_sheets":5,"sheets":["実施手順","実施報告シート〔標準版〕200501","実施報告シート〔項目編集版〕200501","複写用シート","Sheet1"],"not_rendered":{"charts":0,"images":0,"macros":1,"external_links":0,"defined_names":4,"comments":2,"pivot_tables":0},"unopened":[],"bounds":{"document_bytes":16777216,"sheet_cells":100000,"rows_first":2000,"rows_last":500,"rows_between":2000,"halvings":0,"cell_chars":16384,"cell_head_chars":4096},"cells_cut":0,"cells_raw":0,"read":"whole","date_system":"1900"}

{"sheet":"実施手順","index":0,"n_rows":27,"n_cols":2,"rows_kept":27,"cut":false,"hidden":false,"merged":[[26,1,27,1]]}
[]
[null,"この「ウィークリースタンスの取り組み実施報告シート」は、中国地方整備局（港湾空港部除く）が発注する業務の特記仕様書に記載されている「ウィークリースタンスの取り組み」に該当する実施報告シートです。"]
[]
[]
[null,"【 「ウィークリースタンスの取り組み」について  】"]
[]
[null,"１．業務契約締結後、特記仕様書に基づき調査職員と受注者はウィークリースタンス実施項目を協議する。"]
[]
[]
[]
[null,"【 実施報告シート入力方法及び提出方法手順（受注者）  】"]
[]
[null,"１．本Excelデータの実施報告シートを利用して実施状況を作成してください。"]
[null,"　　　実施報告シート〔標準版〕または 実施報告シート〔項目編集版〕を活用してください。"]
[]
[null,"２．完成検査までに履行期間中の実施状況をとりまとめ、実施報告シートに入力してください。"]
[null,"　　※取り決め項目をもとに履行期間中の打合せ回数、業務依頼回数等の実施状況を記録して"]
[null,"　　　おいてください。"]
[null,"　　チェック☑　及び 黄色塗りセルへの入力以外に編集を行わないでください。"]
[]
[null,"３．受注者が完成検査時に検査職員に対し報告してください。"]
[]
[null,"４．実施状況について企画部技術管理課で取り纏めるため、受注者から本Excelのオリジナルデータの提出をお願いします。"]
[null,"　　　提出用メールアドレス　gikan_kijunni@cgr.mlit.go.jp"]
[]
[]
[null,"注）提出していただいた実施報告シートの入力箇所に不備・不明瞭な点がありましたら、企画部技術管理課から問い合わせをさせていただく場合があります。"]

{"sheet":"実施報告シート〔標準版〕200501","index":1,"n_rows":41,"n_cols":29,"rows_kept":41,"cut":false,"hidden":false,"merged":[[47,2,47,9],[47,10,47,17],[9,2,9,17],[6,2,6,17],[22,3,22,17],[24,3,24,17],[26,3,26,17],[28,3,28,17],[30,3,30,17],[32,2,32,3],[40,2,45,17],[34,3,36,17],[32,4,32,16],[17,2,17,17],[20,3,21,17],[13,5,13,7],[1,1,1,18],[11,5,11,10],[12,5,12,10],[12,11,12,12],[12,13,12,17],[11,11,11,12],[11,13,11,17],[40,21,45,26],[5,2,5,17],[7,2,8,17],[4,2,4,17],[12,2,12,4],[11,2,11,4],[13,2,13,4],[13,14,13,17],[13,9,13,11],[13,12,13,13]]}
[]
[null,"ウィークリースタンス実施報告シート"]
[]
[null,null,"【取り扱い】"]
[null,null,"　１．全ての業務を対象としています。"]
[null,null,"　２．業務の実施にあたり、本業務で取り組む内容を記載して下さい。"]
[null,null,"　３．業務完成時に取り組み内容の実施項目の達成度を記載して下さい。"]
[null,null,"　４．入力した実施報告シートは、完成検査時に検査職員に報告し、2週間以内に企画部技術管理課\n　　宛に入力データを電子メールで提出して下さい。　"]
[]
[null,null,"　５．本報告シートは、業務成果の対象外です。"]
[]
[null,null,"発注事務所名：",null,null,null,null,null,null,null,null,"担当課："]
[null,null,"業務名：",null,null,null,null,null,null,null,null,"会社名："]
[null,null,"工期：",null,null,null,null,null,"～",null,null,null,"検査日："]
[]
[null,null,"取り組み内容と実施結果（取り組んだ内容に☑を記載）"]
[]
[null,null,"　業務着手時に調査職員と打合せを行い、本業務で取り組む内容を決定しましたか。",null,null,null,null,null,null,null,null,null,null,null,null,null,null,null,null,null,null,"はい","いいえ",null,null,null,null,null,"確認"]
[null,null,null,null,null,null,null,null,null,null,null,null,null,null,null,null,null,null,null,null,null,false,false,{"$f":"IF(V19=W19,\"\",IF(V19=TRUE,\"Perfect\",\"NG\"))","v":""},{"$f":"IF(V19=TRUE,\"1\",IF(W19=TRUE,\"2\",\"-\"))","v":"-"},null,null,null,{"$f":"IF(V19=W19,\"要確認！\",\"OK\")","v":"要確認！"}]
[null,null,null,"　いいえの場合は理由"]
[]
[]
[null,null,null,"水曜日は、勤務時間外の連絡及び16時以降に掛かる打合せは行わない。",null,null,null,null,null,null,null,null,null,null,null,null,null,null,null,null,null,"Perfect","NG"]
[null,null,null,null,null,null,null,null,null,null,null,"（全",null,"回中",null,"回未実施）",null,null,null,null,false,false,false,{"$f":"IF(V24=W24,\"\",IF(U24=TRUE,IF(V24=TRUE,\"Perfect\",\"NG\"),\"\"))","v":""},{"$f":"IF(V24=TRUE,\"1\",IF(W24=TRUE,\"2\",\"-\"))","v":"-"},{"$f":"M24","v":0},{"$f":"O24","v":0},{"$f":"ROUND(AA24/Z24,3)","v":{"$error":"#DIV/0!"}},{"$f":"IF(U24=TRUE,IF(V24=W24,\"要確認！\",\"OK\"),\"\")","v":""}]
[null,null,null,"水曜日に資料作成依頼を行う場合は、翌日木曜日を期限日としない。"]
[null,null,null,null,null,null,null,null,null,null,null,"（全",null,"回中",null,"回未実施）",null,null,null,null,false,false,false,{"$f":"IF(V26=W26,\"\",IF(U26=TRUE,IF(V26=TRUE,\"Perfect\",\"NG\"),\"\"))","v":""},{"$f":"IF(V26=TRUE,\"1\",IF(W26=TRUE,\"2\",\"-\"))","v":"-"},{"$f":"M26","v":0},{"$f":"O26","v":0},{"$f":"ROUND(AA26/Z26,3)","v":{"$error":"#DIV/0!"}},{"$f":"IF(U26=TRUE,IF(V26=W26,\"要確認！\",\"OK\"),\"\")","v":""}]
[null,null,null,"金曜日に資料作成依頼を行う場合は、翌週月曜日を期限日としない。"]
[null,null,null,null,null,null,null,null,null,null,null,"（全",null,"回中",null,"回未実施）",null,null,null,null,false,false,false,{"$f":"IF(V28=W28,\"\",IF(U28=TRUE,IF(V28=TRUE,\"Perfect\",\"NG\"),\"\"))","v":""},{"$f":"IF(V28=TRUE,\"1\",IF(W28=TRUE,\"2\",\"-\"))","v":"-"},{"$f":"M28","v":0},{"$f":"O28","v":0},{"$f":"ROUND(AA28/Z28,3)","v":{"$error":"#DIV/0!"}},{"$f":"IF(U28=TRUE,IF(V28=W28,\"要確認！\",\"OK\"),\"\")","v":""}]
[null,null,null,"資料作成依頼を正規の勤務時間外には行わない。"]
[null,null,null,null,null,null,null,null,null,null,null,"（全",null,"回中",null,"回未実施）",null,null,null,null,false,false,false,{"$f":"IF(V30=W30,\"\",IF(U30=TRUE,IF(V30=TRUE,\"Perfect\",\"NG\"),\"\"))","v":""},{"$f":"IF(V30=TRUE,\"1\",IF(W30=TRUE,\"2\",\"-\"))","v":"-"},{"$f":"M30","v":0},{"$f":"O30","v":0},{"$f":"ROUND(AA30/Z30,3)","v":{"$error":"#DIV/0!"}},{"$f":"IF(U30=TRUE,IF(V30=W30,\"要確認！\",\"OK\"),\"\")","v":""}]
[null,null,null,"資料作成依頼を行う場合には、適切な期間を確保し期限を設定する。"]
[null,null,null,null,null,null,null,null,null,null,null,"（全",null,"回中",null,"回未実施）",null,null,null,null,false,false,false,{"$f":"IF(V32=W32,\"\",IF(U32=TRUE,IF(V32=TRUE,\"Perfect\",\"NG\"),\"\"))","v":""},{"$f":"IF(V32=TRUE,\"1\",IF(W32=TRUE,\"2\",\"-\"))","v":"-"},{"$f":"M32","v":0},{"$f":"O32","v":0},{"$f":"ROUND(AA32/Z32,3)","v":{"$error":"#DIV/0!"}},{"$f":"IF(U32=TRUE,IF(V32=W32,\"要確認！\",\"OK\"),\"\")","v":""}]
[null,null,"　その他（　",null,null,null,null,null,null,null,null,null,null,null,null,null,null,"）"]
[null,null,null,null,null,null,null,null,null,null,null,"（全",null,"回中",null,"回未実施）",null,null,null,null,null,false,false,{"$f":"IF(E33=\"\",\"なし\",)","v":"なし"},{"$f":"IF(V34=TRUE,\"1\",IF(W34=TRUE,\"2\",\"-\"))","v":"-"},{"$f":"M34","v":0},{"$f":"O34","v":0},{"$f":"ROUND(AA34/Z34,3)","v":{"$error":"#DIV/0!"}}]
[null,null,null,"※ノー残業デーの時間外や土日に作業が発生することが無いよう留意する事、正規の勤務時間外に仕事をすることが前提とならないよう留意する事項を別途定めている場合その内容と実施結果を記載"]
[]
[]
[]
[null,null,"　実施できなかった理由，実施にあたり工夫した内容など（その他意見）"]
[null,null,"　記載例）地元対応のため、水曜日の16時以降に資料作成の依頼があった。"]
[null,null,null,null,null,null,null,null,null,null,null,null,null,null,null,null,null,null,null,null,null,{"$f":"C41","v":0}]

{"sheet":"実施報告シート〔項目編集版〕200501","index":2,"n_rows":38,"n_cols":29,"rows_kept":38,"cut":false,"hidden":false,"merged":[[11,11,11,12],[17,2,17,17],[13,2,13,4],[13,14,13,17],[13,5,13,7],[13,9,13,11],[13,12,13,13],[9,2,9,17],[1,1,1,18],[4,2,4,17],[5,2,5,17],[6,2,6,17],[7,2,8,17],[32,3,32,17],[37,2,43,17],[37,21,43,26],[30,3,30,17],[11,2,11,4],[11,5,11,10],[12,2,12,4],[12,5,12,10],[22,3,22,17],[24,3,24,17],[26,3,26,17],[28,3,28,17],[11,13,11,17],[12,11,12,12],[12,13,12,17],[20,3,21,17]]}
[]
[null,"ウィークリースタンス実施報告シート"]
[]
[null,null,"【取り扱い】"]
[null,null,"　１．全ての業務を対象としています。"]
[null,null,"　２．業務の実施にあたり、本業務で取り組む内容を記載して下さい。"]
[null,null,"　３．業務完成時に取り組み内容の実施項目の達成度を記載して下さい。"]
[null,null,"　４．入力した実施報告シートは、完成検査時に検査職員に報告し、2週間以内に企画部技術管理課\n　　宛に入力データを電子メールで提出して下さい。　"]
[]
[null,null,"　５．本報告シートは、業務成果の対象外です。"]
[]
[null,null,"発注事務所名：",null,null,null,null,null,null,null,null,"担当課："]
[null,null,"業務名：",null,null,null,null,null,null,null,null,"会社名："]
[null,null,"工期：",null,null,null,null,null,"～",null,null,null,"検査日："]
[]
[null,null,"取り組み内容と実施結果（取り組んだ内容に☑を記載）"]
[]
[null,null,"　業務着手時に調査職員と打合せを行い、本業務で取り組む内容を決定しましたか。",null,null,null,null,null,null,null,null,null,null,null,null,null,null,null,null,null,null,"はい","いいえ",null,null,null,null,null,"確認"]
[null,null,null,null,null,null,null,null,null,null,null,null,null,null,null,null,null,null,null,null,null,false,false,{"$f":"IF(V19=W19,\"\",IF(V19=TRUE,\"Perfect\",\"NG\"))","v":""},{"$f":"IF(V19=TRUE,\"1\",IF(W19=TRUE,\"2\",\"-\"))","v":"-"},null,null,null,{"$f":"IF(V19=W19,\"要確認！\",\"OK\")","v":"要確認！"}]
[null,null,null,"　いいえの場合は理由"]
[]
[]
[null,null,null,null,null,null,null,null,null,null,null,null,null,null,null,null,null,null,null,null,null,"Perfect","NG"]
[null,null,null,null,null,null,null,null,null,null,null,"（全",null,"回中",null,"回未実施）",null,null,null,null,false,false,false,{"$f":"IF(V24=W24,\"\",IF(U24=TRUE,IF(V24=TRUE,\"Perfect\",\"NG\"),\"\"))","v":""},{"$f":"IF(V24=TRUE,\"1\",IF(W24=TRUE,\"2\",\"-\"))","v":"-"},{"$f":"M24","v":0},{"$f":"O24","v":0},{"$f":"ROUND(AA24/Z24,3)","v":{"$error":"#DIV/0!"}},{"$f":"IF(U24=TRUE,IF(V24=W24,\"要確認！\",\"OK\"),\"\")","v":""}]
[]
[null,null,null,null,null,null,null,null,null,null,null,"（全",null,"回中",null,"回未実施）",null,null,null,null,false,false,false,{"$f":"IF(V26=W26,\"\",IF(U26=TRUE,IF(V26=TRUE,\"Perfect\",\"NG\"),\"\"))","v":""},{"$f":"IF(V26=TRUE,\"1\",IF(W26=TRUE,\"2\",\"-\"))","v":"-"},{"$f":"M26","v":0},{"$f":"O26","v":0},{"$f":"ROUND(AA26/Z26,3)","v":{"$error":"#DIV/0!"}},{"$f":"IF(U26=TRUE,IF(V26=W26,\"要確認！\",\"OK\"),\"\")","v":""}]
[]
[null,null,null,null,null,null,null,null,null,null,null,"（全",null,"回中",null,"回未実施）",null,null,null,null,false,false,false,{"$f":"IF(V28=W28,\"\",IF(U28=TRUE,IF(V28=TRUE,\"Perfect\",\"NG\"),\"\"))","v":""},{"$f":"IF(V28=TRUE,\"1\",IF(W28=TRUE,\"2\",\"-\"))","v":"-"},{"$f":"M28","v":0},{"$f":"O28","v":0},{"$f":"ROUND(AA28/Z28,3)","v":{"$error":"#DIV/0!"}},{"$f":"IF(U28=TRUE,IF(V28=W28,\"要確認！\",\"OK\"),\"\")","v":""}]
[]
[null,null,null,null,null,null,null,null,null,null,null,"（全",null,"回中",null,"回未実施）",null,null,null,null,false,false,false,{"$f":"IF(V30=W30,\"\",IF(U30=TRUE,IF(V30=TRUE,\"Perfect\",\"NG\"),\"\"))","v":""},{"$f":"IF(V30=TRUE,\"1\",IF(W30=TRUE,\"2\",\"-\"))","v":"-"},{"$f":"M30","v":0},{"$f":"O30","v":0},{"$f":"ROUND(AA30/Z30,3)","v":{"$error":"#DIV/0!"}},{"$f":"IF(U30=TRUE,IF(V30=W30,\"要確認！\",\"OK\"),\"\")","v":""}]
[]
[null,null,null,null,null,null,null,null,null,null,null,"（全",null,"回中",null,"回未実施）",null,null,null,null,false,false,false,{"$f":"IF(V32=W32,\"\",IF(U32=TRUE,IF(V32=TRUE,\"Perfect\",\"NG\"),\"\"))","v":""},{"$f":"IF(V32=TRUE,\"1\",IF(W32=TRUE,\"2\",\"-\"))","v":"-"},{"$f":"M32","v":0},{"$f":"O32","v":0},{"$f":"ROUND(AA32/Z32,3)","v":{"$error":"#DIV/0!"}},{"$f":"IF(U32=TRUE,IF(V32=W32,\"要確認！\",\"OK\"),\"\")","v":""}]
[]
[null,null,null,null,null,null,null,null,null,null,null,"（全",null,"回中",null,"回未実施）",null,null,null,null,false,false,false,{"$f":"IF(V34=W34,\"\",IF(U34=TRUE,IF(V34=TRUE,\"Perfect\",\"NG\"),\"\"))","v":""},{"$f":"IF(V34=TRUE,\"1\",IF(W34=TRUE,\"2\",\"-\"))","v":"-"},{"$f":"M34","v":0},{"$f":"O34","v":0},{"$f":"ROUND(AA34/Z34,3)","v":{"$error":"#DIV/0!"}},{"$f":"IF(U34=TRUE,IF(V34=W34,\"要確認！\",\"OK\"),\"\")","v":""}]
[]
[null,null,"　実施できなかった理由，実施にあたり工夫した内容など（その他意見）"]
[null,null,"　記載例）地元対応のため、水曜日の16時以降に資料作成の依頼があった。"]
[null,null,null,null,null,null,null,null,null,null,null,null,null,null,null,null,null,null,null,null,null,{"$f":"C38","v":0}]

{"sheet":"複写用シート","index":3,"n_rows":43,"n_cols":3,"rows_kept":43,"cut":false,"hidden":false,"merged":[]}
[]
[null,"実施報告シート〔標準版〕"]
[null,"発注事務所名",{"$f":"実施報告シート〔標準版〕200501!F12","v":0}]
[null,"業務名",{"$f":"実施報告シート〔標準版〕200501!F13","v":0}]
[null,"会社名",{"$f":"実施報告シート〔標準版〕200501!N13","v":0}]
[]
[null,"業務着手時に調査職員と打合せを行い、本業務で取り組む内容を決定しましたか。【はい：１，いいえ：2】",{"$f":"実施報告シート〔標準版〕200501!Y19","v":"-"}]
[null,"　　いいえの場合の理由",{"$f":"実施報告シート〔標準版〕200501!D21","v":0}]
[null,"水曜日は、勤務時間外の連絡及び16時以降に掛かる打合せは行わない。【完全実施：１，できなかった：2】",{"$f":"実施報告シート〔標準版〕200501!$Y$24","v":"-"}]
[null,"　　実施できなかった割合",{"$f":"実施報告シート〔標準版〕200501!AB24","v":{"$error":"#DIV/0!"}}]
[null,"水曜日に資料作成依頼を行う場合は、翌日木曜日を期限日としない。【完全実施：１，できなかった：2】",{"$f":"実施報告シート〔標準版〕200501!$Y$26","v":"-"}]
[null,"　　実施できなかった割合",{"$f":"実施報告シート〔標準版〕200501!AB26","v":{"$error":"#DIV/0!"}}]
[null,"金曜日に資料作成依頼を行う場合は、翌週月曜日を期限日としない。【完全実施：１，できなかった：2】",{"$f":"実施報告シート〔標準版〕200501!$Y$28","v":"-"}]
[null,"　　実施できなかった割合",{"$f":"実施報告シート〔標準版〕200501!AB28","v":{"$error":"#DIV/0!"}}]
[null,"資料作成依頼を正規の勤務時間外には行わない。【完全実施：１，できなかった：2】",{"$f":"実施報告シート〔標準版〕200501!Y30","v":"-"}]
[null,"　　実施できなかった割合",{"$f":"実施報告シート〔標準版〕200501!AB30","v":{"$error":"#DIV/0!"}}]
[null,"資料作成依頼を行う場合には、適切な期間を確保し期限を設定する。【完全実施：１，できなかった：2】",{"$f":"実施報告シート〔標準版〕200501!Y32","v":"-"}]
[null,"　　実施できなかった割合",{"$f":"実施報告シート〔標準版〕200501!AB32","v":{"$error":"#DIV/0!"}}]
[null,"その他の項目",{"$f":"実施報告シート〔標準版〕200501!E33","v":0}]
[null,"【完全実施：１，できなかった：2】",{"$f":"実施報告シート〔標準版〕200501!Y34","v":"-"}]
[null,"　　実施できなかった割合",{"$f":"実施報告シート〔標準版〕200501!AB34","v":{"$error":"#DIV/0!"}}]
[null,"その他意見",{"$f":"実施報告シート〔標準版〕200501!V41","v":0}]
[]
[null,"実施報告シート〔項目編集版〕"]
[null,"発注事務所名",{"$f":"実施報告シート〔項目編集版〕200501!F12","v":0}]
[null,"業務名",{"$f":"実施報告シート〔項目編集版〕200501!F13","v":0}]
[null,"会社名",{"$f":"実施報告シート〔項目編集版〕200501!N13","v":0}]
[]
[null,"業務着手時に調査職員と打合せを行い、本業務で取り組む内容を決定しましたか。【はい：１，いいえ：2】",{"$f":"実施報告シート〔項目編集版〕200501!Y19","v":"-"}]
[null,"　　いいえの場合の理由",{"$f":"実施報告シート〔項目編集版〕200501!D21","v":0}]
[1,{"$f":"実施報告シート〔項目編集版〕200501!D23","v":0},{"$f":"実施報告シート〔項目編集版〕200501!Y24","v":"-"}]
[null,"　　実施できなかった割合",{"$f":"実施報告シート〔項目編集版〕200501!AB24","v":{"$error":"#DIV/0!"}}]
[2,{"$f":"実施報告シート〔項目編集版〕200501!D25","v":0},{"$f":"実施報告シート〔項目編集版〕200501!Y26","v":"-"}]
[null,"　　実施できなかった割合",{"$f":"実施報告シート〔項目編集版〕200501!AB26","v":{"$error":"#DIV/0!"}}]
[3,{"$f":"実施報告シート〔項目編集版〕200501!D27","v":0},{"$f":"実施報告シート〔項目編集版〕200501!Y28","v":"-"}]
[null,"　　実施できなかった割合",{"$f":"実施報告シート〔項目編集版〕200501!AB28","v":{"$error":"#DIV/0!"}}]
[4,{"$f":"実施報告シート〔項目編集版〕200501!D29","v":0},{"$f":"実施報告シート〔項目編集版〕200501!Y30","v":"-"}]
[null,"　　実施できなかった割合",{"$f":"実施報告シート〔項目編集版〕200501!AB30","v":{"$error":"#DIV/0!"}}]
[5,{"$f":"実施報告シート〔項目編集版〕200501!D31","v":0},{"$f":"実施報告シート〔項目編集版〕200501!Y32","v":"-"}]
[null,"　　実施できなかった割合",{"$f":"実施報告シート〔項目編集版〕200501!AB32","v":{"$error":"#DIV/0!"}}]
[6,{"$f":"実施報告シート〔項目編集版〕200501!D33","v":0},{"$f":"実施報告シート〔項目編集版〕200501!Y34","v":"-"}]
[null,"　　実施できなかった割合",{"$f":"実施報告シート〔項目編集版〕200501!AB34","v":{"$error":"#DIV/0!"}}]
[null,"その他意見",{"$f":"実施報告シート〔標準版〕200501!V61","v":0}]

{"sheet":"Sheet1","index":4,"n_rows":32,"n_cols":2,"rows_kept":32,"cut":false,"hidden":false,"merged":[]}
[]
[null,"発注事務所名"]
[null,"防災室・災害対策マネジメント室"]
[null,"企画部"]
[null,"河川部"]
[null,"道路部"]
[null,"建政部"]
[null,"用地部"]
[null,"鳥取河川国道事務所"]
[null,"倉吉河川国道事務所"]
[null,"日野川河川事務所"]
[null,"松江国道事務所"]
[null,"出雲河川事務所"]
[null,"浜田河川国道事務所"]
[null,"岡山河川事務所"]
[null,"高梁川・小田川緊急治水対策河川事務所"]
[null,"岡山国道事務所"]
[null,"福山河川国道事務所"]
[null,"三次河川国道事務所"]
[null,"太田川河川事務所"]
[null,"広島西部山系砂防事務所"]
[null,"広島国道事務所"]
[null,"山口河川国道事務所"]
[null,"山陰西部国道事務所"]
[null,"苫田ダム管理所"]
[null,"土師ダム管理所"]
[null,"弥栄ダム管理所"]
[null,"八田原ダム管理所"]
[null,"温井ダム管理所"]
[null,"中国技術事務所"]
[null,"中国道路メンテナンスセンター"]
[null,"その他"]